Cogmind - Beta 10.2 *** ADVENTURER MODE // 2020.12.28 @ 09:40:26 // Winter2019/RPGLIKE Player: Arcade Dan Result: Self-destructed Performance ------------- Evolutions (2) 1000 Regions Visited (3) 600 Robots Destroyed (50) 250 Value Destroyed (1158) 1158 Prototype IDs (1) 20 Alien Tech Used (0) 0 Bonus (179) 179 TOTAL SCORE: 3207 Bonus ------- High Alert Combat Kills 179 Cogmind --------- Core Integrity 493/1150 Matter 37/300 Energy 445/445 System Corruption 0% Temperature Cool (0) Movement Walking (120) Location -8/Materials Parts ------- > --- POWER (2) -------- Improved Ion Engine Heavy Ion Engine > --- PROPULSION (2) --- Carbon-fiber Leg Carbon-fiber Leg > --- UTILITY (5) ------ Improved Sensor Array Improved Signal Interpreter ECM Suite Hardlight Generator High-powered Tractor Beam > --- WEAPON (3) ------- Shotgun Minigun > --- INVENTORY (5) ---- Light Ion Engine Flak Cannon Datajack Peak State ------------ > --- POWER ------------ Improved Ion Engine Heavy Ion Engine > --- PROPULSION ------- Carbon-fiber Leg Carbon-fiber Leg > --- UTILITY ---------- Improved Sensor Array Improved Signal Interpreter ECM Suite Hardlight Generator High-powered Tractor Beam > --- WEAPON ----------- Minigun Minigun Minigun > --- INVENTORY -------- Light Ion Engine Shotgun Flak Cannon Datajack [Rating: 30] Favorites ----------- Power Ion Engine Engine Ion Engine Propulsion Carbon-fiber Leg Treads Light Treads Leg Carbon-fiber Leg Wheel Wheel Hover Unit Hover Unit Utility ECM Suite Device ECM Suite Storage Medium Battery Processor Improved Signal Interpreter Hackware Hacking Suite Weapon Minigun Energy Gun EM Pulse Gun Ballistic Gun Minigun Launcher Rocket Launcher Build | -11 -10 -9 -8 ------- Run | Scr Mat Mat Mat Slots Evolved 8 | . . 6 2 Power 1 | . . 1 . Propulsion 1 | . . 1 . Utility 4 | . . 2 2 Weapon 2 | . . 2 . Parts Attached 32 | 1 4 23 4 Power 5 | . . 4 1 Engine 5 | . . 4 1 Core . | . . . . Reactor . | . . . . Propulsion 9 | 1 2 6 . Treads 2 | . . 2 . Leg 4 | . . 4 . Wheel 2 | 1 1 . . Hover 1 | . 1 . . Flight . | . . . . Utility 10 | . 2 6 2 Device 6 | . 1 3 2 Storage 2 | . 1 1 . Processor 1 | . . 1 . Hackware 1 | . . 1 . Protection . | . . . . Artifact . | . . . . Weapon 8 | . . 7 1 Energy Gun . | . . . . Energy Cannon . | . . . . Ballistic Gun 7 | . . 6 1 Ballistic Cannon . | . . . . Launcher 1 | . . 1 . Special Weapon . | . . . . Impact Weapon . | . . . . Slashing Weapon . | . . . . Piercing Weapon . | . . . . Special Melee Weapon . | . . . . Unidentified Prototypes 1 | . . . 1 Parts Lost . | . . . . Power . | . . . . Propulsion . | . . . . Utility . | . . . . Weapon . | . . . . Highest Loss Streak . | . . . . Average Slot Usage (%) 91 | . 85 92 97 Engine 22 | . 25 22 16 Treads 2 | . . 3 . Leg 7 | . . 6 16 Wheel 9 | . 25 6 . Device 21 | . 9 22 29 Processor 1 | . . . 8 Hackware 5 | . . 10 . Energy Gun 7 | . 25 2 . Ballistic Gun 10 | . . 10 24 Launcher 2 | . . 4 . Naked Turns . | . . . . Heaviest Build 32 | 7 9 23 32 Greatest Support 50 | 10 10 50 40 Greatest Overweight (x) 1 | . . 1 . Average Overweight (x) . | . . . . Largest Inventory Capacity 5 | 5 5 5 5 Average Capacity 4 | 2 5 5 5 Most Carried 5 | 1 5 5 5 Average Carried 4 | . 3 4 3 Final Capacity 5 | 5 5 5 5 Final Carried 5 | 1 5 5 3 Class Distribution -------------------- 40% | Mutant 36% | Hacker-Mutant 16% | Hacker-Gunner 7% | Skirmisher Dominant Class ---------------- Mutant | -10/Materials Hacker-Mutant | -9/Materials Mutant | -8/Materials Resources | -11 -10 -9 -8 ----------- Run | Scr Mat Mat Mat Matter Collected 843 | 200 87 536 20 Remotely . | . . . . Salvage Created 889 | . 110 759 20 Parts 92 | . 18 71 3 Haulers Intercepted 1 | . . 1 . Recyclers Shooed 1 | . 1 . . Parts Field Recycled . | . . . . Retrieved Matter . | . . . . Parts Self-Destructed . | . . . . Prevented . | . . . . Kills | -11 -10 -9 -8 ------- Run | Scr Mat Mat Mat Combat Hostiles Destroyed 34 | . 4 30 . Guns 14 | . 3 11 . AOE 20 | . 1 19 . Classes Destroyed 10 | . 4 6 . Worker 6 | . 1 4 1 Builder 2 | . 1 1 . Hauler 1 | . . 1 . Recycler 1 | . . 1 . Operator 2 | . . 2 . Watcher 4 | . 1 3 . Swarmer 13 | . 4 9 . Grunt 11 | . . 11 . Duelist 2 | . . 2 . Sentry 8 | . . 8 . Best Kill Streak 14 | . 4 14 1 Combat Bots Only 9 | . 3 9 . Max Kills in Single Turn 4 | . 1 4 1 Gunslinging 1 | . . 1 . Exploded 3 | . 1 3 . Melee . | . . . . Uniques/NPCs Destroyed . | . . . . Combat | -11 -10 -9 -8 -------- Run | Scr Mat Mat Mat Damage Taken 1313 | . 140 834 339 Core 1048 | . 115 674 259 Absorbed by Shields 219 | . . 111 108 Redirected to Core 796 | . 68 496 232 Core Remaining (%) 76 | 100 84 46 . Volleys Fired 95 | . 15 78 2 Largest 3 | . 1 3 3 Hottest 75 | . 40 75 75 Shots Fired 125 | . 15 106 4 Gun 87 | . 15 68 4 Cannon . | . . . . Launcher 38 | . . 38 . Special . | . . . . Kinetic 50 | . . 46 4 Thermal . | . . . . Explosive 38 | . . 38 . Electromagnetic 37 | . 15 22 . Robot Hit Streak 24 | . 10 24 6 Robot Miss Streak 3 | . 2 3 . Penetration Max . | . . . . Secondary Targets 5 | . . 5 . Max Gunslinging Chain 1 | . . 1 . Shots Hit Robots 85 | . 11 72 2 Core Hits 74 | . 9 64 1 Critical Hits . | . . . . Critical Kills . | . . . . Critical Parts Destroyed . | . . . . Melee Attacks . | . . . . Impact . | . . . . Slashing . | . . . . Piercing . | . . . . Sneak Attacks . | . . . . Combat Hostiles . | . . . . Follow-up Attacks . | . . . . Damage Inflicted 3370 | . 222 3067 81 Guns 925 | . 140 749 36 Cannons . | . . . . Explosions 2385 | . 72 2313 . Melee . | . . . . Ramming 60 | . 10 5 45 Kinetic 593 | . . 557 36 Thermal 724 | . 72 652 . Explosive 1661 | . . 1661 . Electromagnetic 332 | . 140 192 . Impact . | . . . . Slashing . | . . . . Piercing . | . . . . Highest Corruption . | . . . . Average Corruption . | . . . . Corruption Purged . | . . . . Overload Shots . | . . . . Overflow Damage 127 | . . 127 . Projectiles . | . . . . Explosions 127 | . . 127 . Melee . | . . . . Knockbacks . | . . . . Impact . | . . . . Kinetic . | . . . . Secondary . | . . . . Self-Inflicted Damage 212 | . 4 189 19 Shots 6 | . . 6 . Rammed 16 | . 3 4 9 Targets Rammed 20 | . 3 4 13 Kicked 4 | . . . 4 Crushed . | . . . . Highest Temperature 284 | . 20 284 46 Average Temperature 44 | . 20 44 26 Received Heat Transfer 486 | . . 294 192 Siege Activations . | . . . . Robots Corrupted . | . . . . Combat Hostiles . | . . . . Parts Fried . | . . . . Impact Corruptions . | . . . . Robots Melted . | . . . . Combat Hostiles . | . . . . Parts Melted 1 | . . 1 . Heat Transferred 550 | . 100 450 . Parts Sabotaged . | . . . . Parts Stolen . | . . . . Parts Stripped . | . . . . Power Chain Reactions 2 | . 1 1 . Missiles Intercepted . | . . . . Alert | -11 -10 -9 -8 ------- Run | Scr Mat Mat Mat Peak Influence 795 | . 182 795 356 Initial 286 | . . 65 286 Average 387 | . 66 543 309 Maximum Alert Level 3 | . . 3 1 Low Security (%) 33 | 100 100 19 . Level 1 22 | . . 1 100 Level 2 35 | . . 62 . Level 3 9 | . . 16 . Level 4 . | . . . . Level 5 . | . . . . High Security . | . . . . Max Security . | . . . . Squads Dispatched 2 | . . 2 . Investigation 1 | . . 1 . Extermination . | . . . . Reinforcement 1 | . . 1 . Assault . | . . . . Garrison . | . . . . Intercept . | . . . . Construction Impeded . | . . . . Haulers Reinforced . | . . . . Stealth | -11 -10 -9 -8 --------- Run | Scr Mat Mat Mat Distress Signals 2 | . . 2 . Communications Jammed . | . . . . Distress Signals . | . . . . Times Spotted 56 | . 8 41 7 Peak Tracking Total 4 | . 3 4 4 Tactical Retreats 7 | . 2 3 2 Traps | -11 -10 -9 -8 ------- Run | Scr Mat Mat Mat Traps Triggered 3 | . . 2 1 Indirectly . | . . . . Trap Hack Attempts . | . . . . Triggered . | . . . . Disarmed . | . . . . Reprogrammed . | . . . . Reused . | . . . . Traps Extracted . | . . . . Installed . | . . . . Triggered . | . . . . Machines | -11 -10 -9 -8 ---------- Run | Scr Mat Mat Mat Machines Disabled 9 | . . 9 . Max in Single Turn 3 | . . 3 . Machines Sabotaged . | . . . . Garrisons Compromised . | . . . . Overloaded Fab Kills . | . . . . Fab Network Shutdowns . | . . . . Hacking | -11 -10 -9 -8 --------- Run | Scr Mat Mat Mat Machines Accessed 10 | . 5 3 2 Terminals 10 | . 5 3 2 Fabricators . | . . . . Repair Stations . | . . . . Recycling Units . | . . . . Scanalyzers . | . . . . Garrison Access . | . . . . Total Hacks 25 | . 12 8 5 Successful 22 | . 10 7 5 Failed 3 | . 2 1 . Catastrophic . | . . . . Database Lockouts . | . . . . Manual 23 | . 12 7 4 Terminals 25 | . 12 8 5 Fabricators . | . . . . Repair Stations . | . . . . Recycling Units . | . . . . Scanalyzers . | . . . . Garrison Access . | . . . . Terminal Hacks 2 | . . 1 1 Alert Level 1 | . . 1 . Zone Layout 1 | . . . 1 Fabricator Hacks . | . . . . Repair Station Hacks . | . . . . Recycling Unit Hacks . | . . . . Scanalyzer . | . . . . Garrison Access Hacks . | . . . . Unauthorized Hacks 20 | . 10 6 4 Terminals 20 | . 10 6 4 Track 10 | . 5 3 2 Botnet 10 | . 5 3 2 Fabricators . | . . . . Repair Stations . | . . . . Recycling Units . | . . . . Scanalyzers . | . . . . Garrison Access . | . . . . Data Cores Recovered . | . . . . Used . | . . . . Hacking Detections 5 | . 3 1 1 Full Trace Events 1 | . . 1 . Feedback Events . | . . . . Feedback Blocked . | . . . . Robot Schematics Acquired . | . . . . Robots Built . | . . . . Matter . | . . . . Time . | . . . . Total Robot Build Rating . | . . . . Part Schematics Acquired . | . . . . Parts Built . | . . . . Matter . | . . . . Time . | . . . . Total Part Build Rating . | . . . . Parts Repaired . | . . . . Time . | . . . . Parts Recycled . | . . . . Recycled Matter . | . . . . Retrieved Matter . | . . . . Retrieved Components . | . . . . Parts Scanalyzed . | . . . . Part Schematics Acquired . | . . . . Parts Damaged . | . . . . Bothacking | -11 -10 -9 -8 ------------ Run | Scr Mat Mat Mat Used RIF Installer . | . . . . Robots Hacked . | . . . . Non-combat . | . . . . Combat . | . . . . Robot Hacks Applied . | . . . . Relay Couplers Released . | . . . . Robots Rewired . | . . . . Allies Hacked . | . . . . Hacks Repelled . | . . . . Allies | -11 -10 -9 -8 -------- Run | Scr Mat Mat Mat Total Allies . | . . . . Largest Group . | . . . . Highest-Rated Group . | . . . . Highest-Rated Ally . | . . . . Total Orders . | . . . . Ally Attacks . | . . . . Total Damage . | . . . . Kills . | . . . . Allies Corrupted . | . . . . Allies Melted . | . . . . Intel | -11 -10 -9 -8 ------- Run | Scr Mat Mat Mat Robot Analysis Total . | . . . . Derelict Logs Recovered . | . . . . Drone Launches . | . . . . Drone Recoveries . | . . . . Exploration | -11 -10 -9 -8 ------------- Run | Scr Mat Mat Mat Turns Passed 1659 | 8 362 940 349 Spaces Moved 1335 | 6 398 664 267 Core . | . . . . Treads 82 | . . 82 . Legs 457 | 3 . 187 267 Wheels 796 | 3 398 395 . Hover . | . . . . Flight . | . . . . Fastest Speed 80 | 80 80 80 120 Average Speed 100 | 100 80 105 120 Slowest Speed 160 | 120 80 160 120 Overloaded Moves . | . . . . Propulsion Burnouts . | . . . . Robots Hopped . | . . . . Cave-ins Triggered . | . . . . Exploration Rate (%) 31 | 2 55 50 17 Regions Visited 3 Branch Regions . Pre-discovered Areas . | . . . . Known Exits Taken 1 | . . 1 . Unknown Exits Taken 2 | 1 1 . . Scrap Searched . | . . . . Spaces Dug . | . . . . Terrain Destroyed 274 | . 3 271 . Melee . | . . . . Projectile . | . . . . AOE 274 | . 3 271 . Terrain Rammed . | . . . . Walls Destroyed . | . . . . Machines Disabled . | . . . . Actions | -11 -10 -9 -8 --------- Run | Scr Mat Mat Mat Total 1537 | 7 424 816 290 Wait 6 | . . 6 . Move 1332 | 5 397 663 267 Hop . | . . . . Pick Up 18 | 1 5 10 2 Fast Attach 13 | . . 13 . Attach 5 | . 1 1 3 Detach . | . . . . Swap 14 | 1 3 9 1 Drop 16 | . . 14 2 Fire 95 | . 15 78 2 Melee . | . . . . Ram 4 | . 3 1 . Kick 16 | . . 3 13 Crush . | . . . . Escape Stasis . | . . . . Rewire . | . . . . Trap . | . . . . Miscellaneous 18 | . . 18 . Route ------- -11/Scrapyard -10/Materials (discovered 2 exits: *Mat x2) -9/Materials (discovered 3 exits: *Mat x2 / [*Min]) -8/Materials History --------- Turn | Location | Event 1 | -11/Scrapyard | Discovered new exit (range 1) 9 | -11/Scrapyard | Entered Materials 66 | -10/Materials | Discovered new exit (range 12) 313 | -10/Materials | Build established: Mutant 352 | -10/Materials | Discovered new exit (range 4) 371 | -10/Materials | Entered another Materials area 373 | -9/Materials | Reached level 2 373 | -9/Materials | Reached level 3 414 | -9/Materials | Upgraded with Propulsion slot (x1) 414 | -9/Materials | Upgraded with Utility slot (x2) 429 | -9/Materials | Upgraded with Power slot (x1) 509 | -9/Materials | Reached level 4 598 | -9/Materials | Destroyed 9 combat bots 638 | -9/Materials | Reached level 5 705 | -9/Materials | Discovered new exit (range 11) 721 | -9/Materials | Build established: Hacker-Mutant 779 | -9/Materials | Discovered new exit (range 17) 959 | -9/Materials | Reached level 6 1033 | -9/Materials | Upgraded with Weapon slot (x2) 1189 | -9/Materials | Core integrity fell below 50% 1306 | -9/Materials | Discovered new exit (range 3) 1309 | -9/Materials | Identified exit to Materials 1311 | -9/Materials | Entered another Materials area 1312 | -8/Materials | Core integrity fell below 50% 1313 | -8/Materials | Reached level 7 1313 | -8/Materials | Reached level 8 1394 | -8/Materials | Upgraded with Utility slot (x2) 1660 | -8/Materials | Self-destructed Last Messages --------------- 01396_ Identified Hvy. Ion Engine. 01403_ Acquired Hpw. Tractor Beam. 01441_ K-01 Serf collects debris. 01441_ Slammed into K-01 Serf. 01443_ Minigun permanently disabled. 01443_ Destabilizing: Short circuit. 01444_ Kicked K-01 Serf out of the way. 01459_ Dropped Broken Minigun. 01551_ Slammed into U-05 Engineer. 01600_ Triggered Blade Trap. 01600_ Massive razor-sharp blades shoot up from within the floor. 01600_ Minigun severed. 01606_ U-05 Engineer lays Concrete. 01633_ Slammed into G-47 Trooper. 01634_ Destabilizing: System interference. 01634_ Imp. Sensor Array temporarily disabled. 01636_ Slammed into G-47 Trooper. 01638_ Kicked G-47 Trooper out of the way. 01643_ Slammed into G-47 Trooper. 01648_ Kicked G-47 Trooper out of the way. Map ----- +----------------------------------------------------+ | ?????????????????????????????????????????????????? | | ?????????????????????????????????????????????????? | | ?????????????????????????????????????????????????? | | ?????????????????????????????????????????????????? | | ?????????????????????????????????????????????????? | | ?????????????????????????????????????????????????? | | ?????????????????????????????????????????????????? | | ?????????????????????????????????????????????????? | | ?????????????????????????????????????????????????? | | ?????????????????????????????????????????????????? | | ?????????????????????????????????????????????????? | | ?????????????????????????????????????????????????? | | ?????????????????????????????????????????????????? | | ?????????????????????????????????????????????????? | | ?????????????????? #?????????????????????????# #?? | | ?????????????????? #?????????????????????????# #?? | | ?????????????????#u#????????##########???????# #?? | | ????????????###### ########## #???????# #?? | | ???????????? # "" #?????###?##? | | ???????????? r #! ] "" #?????# ? | | ????????????????? k # T" #????## ? | | ??????????????????###+### + "" #????#Y ? | | ?????????????????? # # "" #????## ? | | ?????????????????? # # #?????# ? | | ??????????????????" """ # # ####### ? | | ??????????????????" """ #@ # # ? ? | | ??????????????????" """ # ################ ? | | ?????????????????? # ^ #?# ############+# | | ?????????????????? # #?# | | ?????????????????? # #?# T | | ??????????????????####### #?# | | ????????????????????????# #?# #############? | | ????????????????????????# #?## ##############? | | ????????????????????????#ggg#??# # !! ]#? | | ????????????????????????# #??# # "" !! #? | | ??????################### g#??# + "T !! = +? | | ??? #??# # "" #? | | ???T #??# # u = #? | | ??? #### ##############? | | ??????##+################ #########?####? | | ????????????????????????# + #?####? | | ????????????????????????# ## #?# ? | | ?????????????????????########### ## """ #?# ? | | ?????????????????????# ## ## """ #???# ? | | ?????????????????????# """"" ## ## """ #???# ? | | ?????????####????????# """"" ## ## #?????? | | ?????????# ????????# """"" # ###+####?????? | | ???????### ???????# # #?????? | | ???????? ???????# """"" # #?????? | | ?????????# ???????# """"" # #?????? | +----------------------------------------------------+ Best States ------------- Heat Dissipation 25 Energy Generation 31 Energy Capacity 475 Matter Stores 346 Matter Capacity 400 Sight Range 17 Robot Scan Range 25 Terrain Scan Density 410 ECM Strength 1 Resistance: KI 35 Resistance: TH 20 Resistance: EX 20 Resistance: EM 20 Resistance: I 20 Resistance: S 20 Resistance: P 20 Evasion (%) 44 Recoil Reduction 2 Offensive Hacking 20 Item Schematics ----------------- None Robot Schematics ------------------ None Fabricated ------------ Nothing Alien Tech Used ----------------- None Achievements -------------- I Spy Challenges ------------ None RPGLIKE | -11 -10 -9 -8 --------- Run | Scr Mat Mat Mat Levels Raised 7 | . . 5 2 XP Earned 14913 | 4000 760 7979 2174 XP Spent 14490 | 3750 205 7315 3220 Upgrades 42 | 5 4 23 10 Power Slot 1 | . . 1 . Propulsion Slot 1 | . . 1 . Utility Slot 4 | . . 2 2 Weapon Slot 2 | . . 2 . Core Integrity 11 | . 3 . 8 Energy Generation 2 | . . 2 . Mass Support 2 | . . 2 . Inventory Capacity 5 | 5 . . . Sight Range 1 | . 1 . . Sensor Range 6 | . . 6 . Terrain Scan Density 4 | . . 4 . KI Resistance % 3 | . . 3 . Protomatter Created 359 | . 42 317 . Integrity Restored 391 | . . 391 . Core 391 | . . 391 . Protomatter Decayed 194 | . 15 179 . Game ------ Seed InsulationSignalRegulator Manual? 0 Play Time 00:26:35 Cumulative 11.1 hours Start 2020.12.28 @ 09:11:59 End 2020.12.28 @ 09:40:26 Sessions 1 Manual Loads 0 Difficulty Adventurer Special Mode Winter2019/RPGLIKE Game No. 38 Rogue 27 Adventurer 11 Explorer 0 Win Type - Total 0 Types 0/0/0/0/0/0/0/0/0 Lore% 18 Gallery% 24 Achievement% 17 Wizard Run 0 Options --------- ASCII 0 Keyboard 0 Movement Arrows Keybinds 0 Fullscreen 1 Font 16/Dina Map View 76x50 Tactical HUD 1 Map Filters NONE Filters NONE Steam 1 RUN: 526235a2-1400-405e-bf6f-adc9d8a48a9a